bitfinex-derivatives/quotes_ETHF0:USTF0_20250612
["timestamp","ask_amount","ask_price","bid_price","bid_amount"]
[1749750848263,23.268,2765.9,2765.8,0.72291]
[1749750848463,0.72294,2765.8,2765.7,0.72291]
[1749750848655,23.268,2765.9,2765.6,1.36796]
[1749750848656,0.72294,2765.7,2765.6,1.36796]
[1749750850059,0.72294,2765.7,2765.5,3.21322221]
[1749750850060,0.72296,2765.6,2765.5,0.00542221]
[1749750850258,30.4361,2765.6,2764.9,3.2078]
[1749750850465,0.72315,2764.9,2764.8,1.33527]
[1749750850960,23.26914,2765.0,2764.9,0.72315]
[1749750851261,3.2078,2765.3,2765.1,0.72309]
[1749750851262,0.00542221,2765.2,2765.1,0.72309]
[1749750851461,22.55142221,2765.2,2765.1,0.72309]
[1749750852267,0.72316,2764.9,2764.8,0.72314]
[1749750853868,0.72311,2765.1,2765.0,0.72309]
[1749750854060,25.75922221,2765.2,2765.0,0.72309]
[1749750854263,23.27451221,2765.2,2765.1,0.72309]
[1749750854463,0.72312,2765.1,2765.0,0.7231]
[1749750855069,0.72315,2765.0,2764.9,0.72312]
[1749750855469,0.72317,2764.9,2764.8,0.72315]
[1749750856365,1.2317,2765.1,2764.7,0.00542221]
[1749750856366,0.72317,2764.8,2764.7,0.00542221]
[1749750856566,23.27317,2764.8,2764.7,0.00542221]
[1749750856967,23.27317,2764.8,2764.7,0.72862221]
[1749750858571,22.55,2764.8,2764.7,0.72862221]
[1749750858765,23.27317,2764.8,2764.7,0.72862221]
[1749750860365,0.72317,2764.8,2764.7,0.72862221]
[1749750860668,23.27417,2764.8,2764.7,0.00542221]
[1749750860858,23.27417,2764.8,2764.7,0.72862221]
[1749750861063,0.72317,2764.8,2764.7,0.72862221]
[1749750861271,23.27417,2764.8,2764.7,0.72862221]
[1749750862271,22.551,2764.8,2764.7,0.72862221]
[1749750862771,23.27417,2764.8,2764.7,0.72862221]
[1749750862965,3.2078,2764.9,2764.8,0.72317]
[1749750863160,25.7608,2764.9,2764.8,0.72317]
[1749750863370,26.48395,2764.9,2764.8,0.72317]
[1749750863569,0.72315,2764.9,2764.8,0.72317]
[1749750865769,25.7598,2765.0,2764.8,0.72317]
[1749750865770,0.00542221,2765.2,2764.9,0.72315]
[1749750865966,0.00542221,2765.2,2765.1,0.72309]
[1749750866270,22.55742221,2765.2,2765.1,0.72309]
[1749750866770,0.72316,2765.0,2764.9,0.72312]
[1749750867071,0.72317,2764.9,2764.8,0.72316]
[1749750870072,22.551,2765.0,2764.9,0.72315]
[1749750870275,0.00542221,2765.2,2765.1,0.72309]
[1749750870575,22.55642221,2765.2,2765.1,3.93089]
[1749750871071,22.92662221,2765.2,2765.1,3.93089]
[1749750871270,0.37562221,2765.2,2765.1,3.93089]
[1749750871573,1.9148,2765.6,2765.5,0.72299]
[1749750871574,0.6402,2765.6,2765.5,0.72299]
[1749750871774,23.1912,2765.6,2765.5,0.72299]
[1749750872969,7.36334221,2765.8,2765.7,0.72294]
[1749750873277,29.91434221,2765.8,2765.7,0.72294]
[1749750873574,23.92934221,2765.8,2765.7,0.72294]
[1749750874877,1.37834221,2765.8,2765.7,0.72294]
[1749750875175,23.92734221,2765.8,2765.7,0.72294]
[1749750876477,0.72296,2765.7,2765.6,0.72294]
[1749750879082,0.72299,2765.6,2765.5,0.72297]
[1749750880791,0.65542221,2765.8,2765.7,0.72294]
[1749750880792,0.00542221,2765.8,2765.7,0.72294]
[1749750880983,0.00542221,2765.8,2765.7,6.77349317]
[1749750881175,0.00542221,2765.8,2765.7,3.93074]
[1749750881369,0.00542221,2765.8,2765.7,4.54244]
[1749750883081,0.00542221,2765.8,2765.7,7.38314053]
[1749750883385,0.00542221,2765.8,2765.7,7.38227554]
[1749750884271,0.72833221,2765.8,2765.7,7.38227554]
[1749750884473,0.00542221,2765.8,2765.7,4.17447554]
[1749750884889,0.00542221,2765.8,2765.7,7.38227554]
[1749750885185,0.00542221,2765.8,2765.7,4.54244]
[1749750886280,0.723,2765.9,2765.8,0.72291]
[1749750886475,28.52,2766.5,2766.3,0.72278]
[1749750886678,1.91598,2766.4,2766.3,0.72278]
[1749750888379,1.1932,2766.4,2766.3,0.72278]
[1749750888584,5.12952221,2766.6,2766.5,0.72273]
[1749750890080,0.72278,2766.3,2766.2,1.32849]
[1749750890372,23.73602221,2766.6,2766.2,0.6057]
[1749750890578,24.45874221,2766.6,2766.5,0.72273]
[1749750891180,1.92174221,2766.6,2766.5,0.72273]
[1749750895390,0.72275,2766.5,2766.4,0.72274]
[1749750898386,0.72275,2766.4,2766.3,3.2078]
[1749750898690,0.72281,2766.2,2766.1,0.00542221]
[1749750899191,0.72281,2766.2,2766.1,0.72825221]
[1749750899391,2.67201,2766.2,2766.1,0.72825221]
[1749750899583,2.67201,2766.2,2766.1,0.00542221]
[1749750900089,2.67201,2766.2,2766.1,0.72825221]
[1749750900288,2.67201,2766.2,2766.1,0.00542221]
[1749750901488,2.67201,2766.2,2765.7,3.93071]
[1749750901489,8.75624,2766.2,2765.8,2.83775248]
[1749750901786,0.72296,2765.6,2765.5,3.56073248]
[1749750902484,0.72296,2765.6,2765.5,2.83775248]
[1749750902685,0.72296,2765.6,2765.4,3.56075248]
[1749750902686,0.72299,2765.5,2765.4,3.56075248]
[1749750902886,0.72299,2765.5,2765.4,2.83775248]
[1749750903085,0.72302,2765.4,2765.3,0.00542221]
[1749750903486,1.99762,2765.4,2765.3,0.00542221]
[1749750903686,5.20542,2765.4,2765.3,0.00542221]
[1749750904191,0.72317,2764.8,2764.7,0.72318]
[1749750904883,22.53,2765.0,2764.8,0.72316]
[1749750904884,0.72317,2764.9,2764.8,0.72316]
[1749750905085,0.72319,2764.8,2764.7,0.72318]
[1749750908195,0.72315,2764.9,2764.8,0.72315]
[1749750908793,23.25313,2765.0,2764.9,0.72315]
[1749750909182,0.00542221,2765.1,2765.0,0.72312]
[1749750909385,22.53642221,2765.1,2765.0,0.72312]
[1749750910090,22.53842221,2765.1,2765.0,0.72312]
[1749750910288,23.26151221,2765.1,2765.0,0.72312]
[1749750910486,0.72315,2764.9,2764.8,3.2078]
[1749750910690,0.7232,2764.7,2764.6,0.00542221]
[1749750910893,23.2562,2764.7,2764.6,0.00542221]
[1749750911400,0.72336,2764.1,2764.0,3.93117]
[1749750911592,22.533,2764.2,2763.9,0.6392]
[1749750911783,22.533,2764.2,2764.0,0.72336]
[1749750911784,0.72336,2764.1,2764.0,0.72336]
[1749750911988,23.25634,2764.2,2764.1,0.72336]
[1749750912296,0.72339,2764.0,2763.9,0.72338]
[1749750912790,0.72343,2763.8,2763.7,0.72887221]
[1749750912986,0.7234,2764.0,2763.9,0.72338]
[1749750913191,0.7234,2764.0,2763.7,0.00542221]
[1749750913192,0.72342,2763.9,2763.8,0.72341]
[1749750913396,1.8697,2764.1,2763.7,0.00542221]
[1749750913588,0.72338,2764.0,2763.9,0.7234]
[1749750913991,0.72342,2763.9,2763.8,0.72342]
[1749750914291,3.93122,2763.9,2763.7,0.00542221]
[1749750914598,0.72341,2763.9,2763.8,0.72343]
[1749750914802,23.25742,2763.9,2763.8,0.72343]
[1749750915101,0.72343,2763.8,2763.7,0.00542221]
[1749750915293,6.27291,2763.8,2763.2,0.72358]
[1749750915506,1.80866,2763.7,2763.1,0.72359]
[1749750915694,3.06525,2763.6,2763.0,3.93143]
[1749750916000,25.7448,2763.5,2762.9,1.80918]
[1749750916302,25.75022221,2763.5,2763.1,0.72359]
[1749750916500,0.72356,2763.3,2763.2,0.72359]
[1749750916793,0.6509,2763.4,2763.3,0.72356]
[1749750916995,0.00542221,2763.5,2763.4,0.72354]
[1749750917185,0.00542221,2763.5,2763.4,3.93134]
[1749750917390,0.00542221,2763.5,2763.4,0.72354]
[1749750917905,0.00542221,2763.5,2763.4,3.93134]
[1749750918096,0.00542221,2763.5,2763.4,0.72354]
[1749750918396,0.72893221,2763.5,2763.4,0.72354]
[1749750918587,0.00542221,2763.5,2763.4,0.72354]
[1749750919098,0.72893221,2763.5,2763.4,0.72354]
[1749750919294,0.72895221,2763.5,2763.4,0.72354]
[1749750919502,0.00542221,2763.5,2763.1,1.80905]
[1749750919688,0.00542221,2763.5,2763.4,0.72354]
[1749750920401,0.00542221,2763.5,2763.4,1.99724]
[1749750920794,0.00542221,2763.5,2763.4,0.72354]
[1749750921204,0.00542221,2763.5,2763.4,1.99724]
[1749750922196,0.00542221,2763.5,2763.4,0.72354]
[1749750922501,0.72893221,2763.5,2763.4,0.72354]
[1749750922709,0.72354,2763.4,2763.3,0.72355]
[1749750923497,0.00542221,2763.5,2763.4,0.72354]
[1749750923697,0.00542221,2763.5,2763.2,0.72356]
[1749750924004,0.72358,2763.3,2763.2,0.72356]
[1749750924302,0.5925,2763.4,2763.3,0.72356]
[1749750926104,1.31604,2763.4,2763.3,0.72356]
[1749750927500,0.72362,2763.2,2763.1,0.7236]
[1749750927706,0.72362,2763.1,2763.0,0.72364]
[1749750928001,1.96586,2763.4,2763.3,0.72356]
[1749750928395,1.2423,2763.4,2763.3,0.72356]
[1749750928595,1.31604,2763.4,2763.3,0.72356]
[1749750929002,0.5925,2763.4,2763.3,0.72356]
[1749750929198,1.8086,2763.8,2763.3,0.72356]
[1749750929199,3.2078,2763.9,2763.8,0.72343]
[1749750929399,0.72336,2764.1,2764.0,0.72338]
[1749750929600,3.2078,2764.5,2763.8,5.977]
[1749750929800,3.2078,2764.8,2764.2,1.80833]
[1749750930000,3.93097,2764.8,2764.7,0.7232]
[1749750930411,3.2078,2764.8,2764.5,0.00542221]
[1749750930906,0.72322,2764.6,2764.5,0.00542221]
[1749750931601,1.98512,2764.6,2764.5,0.00542221]
[1749750932604,6.98512,2764.6,2764.5,0.00542221]
[1749750932807,1.98512,2764.6,2764.5,0.00542221]
[1749750933010,1.2619,2764.6,2764.5,0.72867221]
[1749750933409,1.98512,2764.6,2764.5,0.00542221]
[1749750933605,1.98512,2764.6,2764.5,0.72867221]
[1749750933804,1.34561,2764.7,2764.6,0.72322]
[1749750934107,0.72322,2764.6,2764.5,0.00542221]
[1749750934497,0.72322,2764.6,2764.5,0.72867221]
[1749750934701,0.72322,2764.6,2764.5,0.00542221]
[1749750934901,0.72322,2764.6,2764.5,0.72867221]
[1749750935308,0.72322,2764.6,2764.5,0.00542221]
[1749750935611,1.97692,2764.6,2764.5,0.00542221]
[1749750937601,1.80814,2764.5,2764.0,0.72335]
[1749750937808,0.72341,2764.0,2763.9,0.7234]
[1749750938103,0.72341,2764.0,2763.7,3.2078]
[1749750938104,0.72345,2763.8,2763.7,0.72343]
[1749750938303,0.72343,2763.9,2763.8,0.7234]
[1749750939411,0.72346,2763.7,2763.6,0.72890221]
[1749750939610,0.72346,2763.7,2763.6,0.00542221]
[1749750939912,0.72346,2763.7,2763.6,0.72891221]
[1749750940608,0.72346,2763.7,2763.6,0.00542221]
[1749750940823,0.72346,2763.7,2763.6,0.72891221]
[1749750941510,0.72346,2763.7,2763.6,0.00542221]
[1749750941711,1.91966,2763.7,2763.6,0.00542221]
[1749750943914,1.91966,2763.7,2763.6,0.72891221]
[1749750944215,1.91966,2763.7,2763.6,0.00542221]
[1749750944216,30.45566,2763.7,2763.6,0.00542221]
[1749750945710,1.91966,2763.7,2763.6,0.00542221]
[1749750945916,30.45066,2763.7,2763.6,0.00542221]
[1749750949114,3.93125,2763.8,2763.7,0.72346]
[1749750949322,26.48825,2763.8,2763.7,0.72346]
[1749750949708,26.47923,2763.8,2763.7,0.72346]
[1749750949910,3.2078,2763.8,2763.7,0.72346]
[1749750950218,0.72336,2764.1,2764.0,0.72336]
[1749750950510,23.28136,2764.1,2764.0,0.72336]
[1749750950715,23.27833,2764.3,2764.2,0.72331]
[1749750950918,0.72335,2764.2,2764.1,0.72333]
[1749750951112,22.555,2764.3,2764.0,3.2078]
[1749750951317,0.72336,2764.1,2764.0,3.93117]
[1749750952217,0.72338,2764.0,2763.9,1.36519]
[1749750952421,0.72341,2763.9,2763.8,2.83775248]
[1749750952613,0.72343,2763.8,2763.7,0.5991]
[1749750956120,0.72343,2763.8,2763.7,7.36809248]
[1749750956619,0.72343,2763.8,2763.7,4.16029248]
[1749750956819,1.15753,2763.8,2763.7,4.16029248]
[1749750957713,1.15753,2763.8,2763.7,1.32254]
[1749750958816,0.4341,2763.8,2763.7,4.53034]
[1749750959009,1.2251,2764.8,2763.7,16.0283]
[1749750959213,1.2027,2764.9,2764.5,3.2078]
[1749750959214,0.72322,2764.6,2764.5,3.2078]
[1749750959415,0.7233,2764.3,2764.2,11.78682]
[1749750959616,0.7233,2764.3,2764.2,2.60602]
[1749750960423,0.7233,2764.3,2764.2,1.35762]
[1749750960721,0.7233,2764.3,2764.2,0.72332]
[1749750961517,0.72329,2764.4,2764.3,0.72327]
[1749750961718,0.72329,2764.4,2764.3,3.57609761]
[1749750964325,0.7234,2764.5,2764.3,2.85282761]
[1749750964523,0.7234,2764.5,2764.4,3.57610761]
[1749750964719,0.7234,2764.5,2764.4,6.78390761]
[1749750964920,0.7234,2764.5,2764.4,3.93108]
[1749750965223,0.7234,2764.5,2764.4,5.11338]
[1749750966320,0.7234,2764.5,2764.4,7.96364248]
[1749750967519,1.44665,2764.5,2764.4,6.05806248]
[1749750967719,1.44665,2764.5,2764.1,3.56453655]
[1749750967720,2.53155,2764.5,2764.1,2.85026248]
[1749750967930,0.72338,2764.0,2763.9,2.85026248]
[1749750968228,0.72343,2763.8,2763.7,1.37055]
[1749750969622,0.72343,2763.8,2763.7,0.6471]
[1749750969930,0.72346,2763.7,2763.6,0.72890221]
[1749750971429,0.72346,2763.7,2763.6,0.00542221]
[1749750972031,3.93126,2763.7,2763.6,0.00542221]
[1749750972823,5.20486,2763.7,2763.6,0.00542221]
[1749750973026,0.72356,2763.3,2763.2,2.85026248]
[1749750973228,0.72356,2763.3,2763.2,3.57385248]
[1749750973432,0.72356,2763.3,2763.2,2.85026248]
[1749750973632,0.72359,2763.2,2763.1,3.57386248]
[1749750974230,0.72362,2763.1,2763.0,2.85026248]
[1749750974531,1.92113,2763.1,2763.0,0.72364]
[1749750974726,1.1975,2763.1,2763.0,0.72364]
[1749750975330,1.92112,2763.1,2763.0,0.72364]
[1749750975835,0.72364,2763.0,2762.9,0.72727151]
[1749750976437,1.95374,2763.0,2762.9,0.72727151]
[1749750977337,1.92113,2763.1,2763.0,0.72364]
[1749750977536,0.72364,2763.0,2762.9,0.72725151]
[1749750978539,0.72364,2763.0,2762.9,0.00361151]
[1749750978841,1.91714,2763.0,2762.9,0.00361151]
[1749750980837,1.1935,2763.0,2762.9,0.72728151]
[1749750981442,1.91714,2763.0,2762.9,0.00361151]
[1749750982141,1.80925,2762.8,2762.4,3.2078]
[1749750982342,1.80951,2762.4,2761.8,3.2078]
[1749750982647,3.2078,2762.5,2761.7,0.72396]
[1749750982648,3.2078,2762.2,2761.7,0.72396]
[1749750982839,1.2171,2762.1,2761.7,0.72396]
[1749750983035,0.72397,2761.8,2761.5,3.2078]
[1749750983241,0.00542221,2761.9,2761.7,0.72398]
[1749750983547,0.724,2761.7,2761.6,0.724]
[1749750983843,0.72952221,2761.9,2761.5,3.2078]
[1749750984042,0.724,2761.7,2761.6,0.72401]
[1749750984248,0.72407,2761.4,2761.3,0.72408]
[1749750984544,0.72407,2761.4,2761.1,6.05806248]
[1749750984545,0.72419,2760.9,2760.8,3.93201]
[1749750984938,3.64337,2761.3,2760.8,3.2078]
[1749750985136,1.81029,2761.2,2760.5,12.03306248]
[1749750985339,0.72418,2761.0,2760.9,0.72418]
[1749750985841,1.91056,2761.1,2760.5,12.29122]
[1749750986047,1.1864,2761.1,2760.9,0.72418]
[1749750986249,0.72417,2761.0,2760.9,0.72418]
[1749750986544,3.8545,2761.3,2761.2,0.72411]
[1749750986749,3.8545,2761.3,2760.3,0.5909]
[1749750986750,1.81029,2761.2,2760.5,3.2078]
[1749750986945,22.612,2761.5,2760.3,0.5909]
[1749750986946,3.2078,2761.4,2760.8,3.2078]
[1749750987139,3.2078,2762.2,2761.1,3.2078]
[1749750987347,3.2078,2761.6,2761.0,3.2078]
[1749750987544,1.2779,2761.5,2761.0,3.2078]
[1749750987741,1.2779,2761.5,2760.9,3.2078]
[1749750988043,1.2779,2761.5,2761.0,3.2078]
[1749750988341,0.72411,2761.3,2761.1,0.72412]
[1749750988736,0.72415,2761.1,2761.0,0.72417]
[1749750988941,0.72413,2761.2,2761.0,0.72417]
[1749750989140,31.88503,2761.5,2760.7,1.2226]
[1749750989452,0.72412,2761.2,2760.7,1.2226]
[1749750989656,0.72412,2761.2,2760.6,3.2078]
[1749750989657,3.2078,2761.2,2760.6,3.2078]
[1749750989854,31.9998,2761.2,2760.8,0.72421]
[1749750990147,1.884,2761.1,2760.7,0.72424]
[1749750990348,0.72425,2760.7,2760.3,3.2078]
[1749750990547,3.2078,2760.9,2760.7,0.72424]
[1749750990548,0.72424,2760.8,2760.7,0.72424]
[1749750990847,1.97494,2760.8,2760.7,0.72424]
[1749750991255,24.24445,2761.1,2760.6,5.01844]
[1749750991438,23.5203,2761.1,2761.0,0.72417]
[1749750991643,1.2507,2761.5,2761.0,3.2078]
[1749750991948,0.72412,2761.2,2760.7,1.81062]
[1749750992152,1.8498,2761.5,2760.6,4.4499]
[1749750992342,1.8498,2761.5,2760.7,1.81062]
[1749750992549,1.8498,2761.5,2760.9,3.2078]
[1749750992858,0.72952221,2761.9,2761.8,0.72396]
[1749750993050,0.72952221,2761.9,2761.3,3.2078]
[1749750993254,0.72408,2761.4,2761.3,0.72408]
[1749750993456,0.72402,2761.6,2761.5,0.72402]
[1749750993652,0.5991,2761.6,2761.1,1.2186]
[1749750993954,1.8772,2761.6,2761.5,0.72403]
[1749750994152,1.32311,2761.6,2761.5,0.72403]
[1749750994561,0.5991,2761.6,2761.5,0.72403]
[1749750994759,0.72405,2761.5,2761.4,0.72404]
[1749750995159,0.5991,2761.6,2761.5,0.72403]
[1749750995352,0.5991,2761.6,2761.4,0.72404]
[1749750995659,0.72405,2761.5,2761.4,0.72404]
[1749750995851,0.72409,2761.4,2761.3,0.72408]
[1749750996053,1.8772,2761.6,2761.5,0.72403]
[1749750996253,0.72405,2761.5,2761.4,0.72404]
[1749750997263,0.72408,2761.4,2761.3,0.72407]
[1749750998655,1.8772,2761.6,2761.1,0.5937]
[1749750998852,0.72403,2761.5,2761.4,0.72404]
[1749750999048,0.72409,2761.4,2761.3,0.72407]
[1749751000053,0.72411,2761.3,2761.2,0.7241]
[1749751000958,3.68724,2761.6,2761.4,0.72403]
[1749751000959,0.72407,2761.5,2761.4,0.72403]
[1749751001960,0.72411,2761.3,2761.2,0.72408]
[1749751002551,0.5991,2761.6,2761.5,0.72403]
[1749751003258,1.32311,2761.6,2761.5,0.72403]
[1749751003766,0.72409,2761.4,2761.3,0.72405]
[1749751005364,0.72414,2761.1,2761.0,0.72415]
[1749751005552,1.81022,2761.3,2760.9,3.93196]
[1749751005553,0.72417,2761.0,2760.9,3.93196]
[1749751005963,0.72417,2761.0,2760.9,3.2078]
[1749751006264,0.72419,2760.9,2760.8,0.7242]
[1749751007460,0.72432,2760.4,2760.3,3.93212]
[1749751008357,0.6088,2760.6,2760.3,3.93212]
[1749751008358,1.33311,2760.6,2760.5,0.7243]
[1749751008959,0.72431,2760.6,2760.5,0.7243]
[1749751009358,0.72432,2760.5,2760.4,0.72431]
[1749751009665,0.72432,2760.5,2760.4,0.0620172]
[1749751010264,0.72429,2760.6,2760.5,0.72427]
[1749751010866,0.72432,2760.5,2760.4,0.7243]
[1749751012066,0.72432,2760.4,2760.3,3.93212]
[1749751012268,0.72438,2760.3,2760.2,0.72434]
[1749751012766,0.7244,2760.2,2760.1,0.72439]
[1749751013362,0.7244,2760.1,2760.0,3.9322]
[1749751013770,0.72436,2760.4,2760.3,0.72433]
[1749751014068,0.72439,2760.3,2760.2,0.72436]
[1749751014469,4.53173213,2760.5,2760.4,0.72432]
[1749751014766,0.72973213,2760.5,2760.4,0.72432]
[1749751014965,0.72437,2760.3,2760.2,0.72436]
[1749751015163,0.7244,2760.2,2760.1,0.72438]
[1749751015465,0.72437,2760.3,2760.2,0.72435]
[1749751015663,0.72437,2760.3,2760.2,0.7863672]
[1749751015866,0.72976213,2760.5,2760.4,0.72432]
[1749751016466,0.72975213,2760.5,2760.4,0.72432]
[1749751017070,0.00543213,2760.5,2760.4,0.72432]
[1749751017574,0.72973213,2760.5,2760.4,0.72432]
[1749751017772,0.00543213,2760.5,2760.4,0.72432]
[1749751018167,0.00543213,2760.5,2760.4,3.93212]
[1749751018369,0.00543213,2760.5,2760.4,0.72432]
[1749751018770,0.00543213,2760.5,2760.4,3.93212]
[1749751020074,0.00543213,2760.5,2760.4,0.72432]
[1749751020764,0.72973213,2760.5,2760.4,0.72432]
[1749751021576,0.72975213,2760.5,2760.4,0.72432]
[1749751022577,0.00543213,2760.5,2760.4,0.72432]
[1749751022779,0.72973213,2760.5,2760.4,0.72432]
[1749751025177,0.72437,2760.3,2760.2,0.72435]
[1749751025780,0.00543213,2760.5,2760.4,0.72432]
[1749751025979,0.72973213,2760.5,2760.4,0.72432]
[1749751026181,0.00543213,2760.5,2760.4,0.72432]
[1749751027181,0.72973213,2760.5,2760.4,0.72432]
[1749751029081,0.72438,2760.2,2760.1,6.78245248]
[1749751031583,0.72438,2760.2,2760.1,3.57465248]
[1749751031784,2.57484,2760.4,2760.3,0.72435]
[1749751031980,1.31344,2760.4,2760.3,0.72435]
[1749751033082,0.72435,2760.3,2760.2,3.57461248]
[1749751033684,0.72435,2760.3,2760.2,2.85026248]
[1749751034590,0.72435,2760.3,2760.2,3.57464248]
[1749751035284,0.72435,2760.3,2760.2,2.85026248]
[1749751035480,3.93215,2760.3,2760.2,2.85026248]
[1749751035678,0.7244,2760.1,2760.0,2.85026248]
[1749751036083,0.72443,2760.0,2759.9,3.57471248]
[1749751036283,0.72443,2760.0,2759.9,0.72445]
[1749751036479,0.72443,2760.0,2759.8,0.72447]
[1749751036480,0.72448,2759.9,2759.8,0.72447]
[1749751040485,1.15915,2760.0,2759.9,0.72445]
[1749751040683,0.4347,2760.0,2759.9,0.72445]
[1749751041284,1.15913,2760.0,2759.9,0.72445]
[1749751042181,0.72445,2759.9,2759.8,4.90489655]
[1749751042486,0.72445,2759.9,2759.8,1.34036]
[1749751043779,0.72445,2759.9,2759.4,3.2078]
[1749751043780,0.72451,2759.7,2759.6,3.56453655]
[1749751043984,0.72453,2759.6,2759.5,2.87230954]
[1749751044494,0.72456,2759.5,2759.4,2.87230954]
[1749751044790,1.93566,2759.5,2759.4,2.87230954]
[1749751045487,1.2111,2759.5,2759.3,2.87230954]
[1749751045789,3.8118,2759.8,2759.5,0.72452]
[1749751045790,0.72454,2759.6,2759.5,0.72452]
[1749751046190,0.72456,2759.5,2759.4,3.59688954]
[1749751046586,0.72456,2759.5,2759.4,6.80468954]
[1749751047186,0.72456,2759.5,2759.4,3.59688954]
[1749751047687,0.72458,2759.4,2759.3,2.87230954]
[1749751047883,0.72458,2759.4,2759.3,3.59690954]
[1749751048092,0.72458,2759.4,2759.3,2.87230954]
[1749751048288,0.72458,2759.4,2759.3,3.59691954]
[1749751048794,0.72458,2759.4,2759.3,0.72461]
[1749751049093,0.72461,2759.3,2759.2,3.59691954]
[1749751049294,0.592,2759.5,2759.2,3.59691954]
[1749751049295,0.592,2759.5,2759.2,2.87230954]
[1749751049490,1.31659,2759.5,2759.4,0.72459]
[1749751050296,1.31656,2759.5,2759.4,0.72459]
[1749751050493,0.72461,2759.4,2759.3,0.7246]
[1749751050694,0.592,2759.5,2759.4,0.72458]
[1749751050995,1.31656,2759.5,2759.4,0.72458]
[1749751051294,1.31656,2759.5,2759.3,0.7246]
[1749751051295,0.72461,2759.4,2759.3,0.7246]
[1749751051695,1.31657,2759.5,2759.4,0.72458]
[1749751051891,0.592,2759.5,2759.4,0.72458]
[1749751052491,0.72461,2759.4,2759.3,0.7246]
[1749751052695,1.31659,2759.5,2759.4,0.72458]
[1749751053090,1.2979,2759.7,2759.6,0.72453]
[1749751053295,1.2979,2759.7,2759.2,4.68388954]
[1749751053296,0.72461,2759.3,2759.2,0.72461]
[1749751053799,0.72464,2759.2,2759.1,3.93244]
[1749751054192,0.72464,2759.2,2759.1,0.72464]
[1749751054694,1.31972,2759.3,2759.2,0.72464]
[1749751054895,0.72465,2759.2,2759.1,0.72464]
[1749751056201,1.31973,2759.3,2759.2,0.72464]
[1749751056397,1.31973,2759.3,2759.2,0.7866572]
[1749751057300,4.52753,2759.3,2759.2,0.0620172]
[1749751057497,1.8116,2759.2,2758.8,2.87230954]
[1749751057695,0.72469,2759.1,2759.0,0.72466]
[1749751057895,2.02259,2759.1,2759.0,0.72466]
[1749751058099,0.72469,2759.1,2759.0,0.72466]
[1749751058602,2.05566,2759.2,2759.1,0.72466]
[1749751058902,0.7247,2759.1,2759.0,0.72467]
[1749751059097,2.0226,2759.1,2759.0,0.72467]
[1749751059502,1.2979,2759.1,2759.0,0.72467]
[1749751059704,0.72474,2758.9,2758.8,0.7247]
[1749751060406,1.30333213,2759.1,2759.0,0.72469]
[1749751060799,2.02799213,2759.1,2759.0,0.72469]
[1749751061003,0.00543213,2759.1,2759.0,0.72469]
[1749751061198,0.73009213,2759.1,2759.0,0.72469]
[1749751062102,0.00543213,2759.1,2759.0,0.72469]
[1749751065510,0.00543213,2759.1,2759.0,3.59699954]
[1749751066107,0.7248,2759.2,2759.1,0.72466]
[1749751066314,0.7248,2759.2,2759.1,3.93246]
[1749751066605,0.7248,2759.2,2759.1,6.79783498]
[1749751068011,0.7248,2759.2,2759.1,3.93246]
[1749751069212,0.7248,2759.2,2759.1,6.79939816]
[1749751069411,0.7248,2759.2,2759.1,6.7994124]
[1749751069604,0.7248,2759.2,2759.1,3.9944772]
[1749751070301,1.1597,2759.2,2759.1,3.9944772]
[1749751071908,1.1597,2759.2,2759.1,5.1931772]
[1749751072506,1.1597,2759.2,2759.1,8.75771375]
[1749751073808,0.4349,2759.2,2759.1,8.75771375]
[1749751074414,0.00543213,2759.4,2759.3,0.72461]
[1749751074714,0.73001213,2759.4,2759.3,4.31221161]
[1749751074911,0.00543213,2759.4,2759.3,0.72461]
[1749751075110,0.00543213,2759.4,2759.3,1.33921]
[1749751076010,0.00543213,2759.4,2759.3,4.92681161]
[1749751076213,0.00543213,2759.4,2759.3,6.19221161]
[1749751082018,0.00543213,2759.4,2759.3,4.92681161]
[1749751083620,0.72445,2760.0,2759.9,0.72441]
[1749751083822,1.94141,2760.1,2760.0,0.72443]
[1749751084020,3.23731,2760.1,2760.0,0.72443]
[1749751084620,2.5129,2760.1,2760.0,0.72443]
[1749751085523,1.217,2760.1,2760.0,0.72443]
[1749751085821,0.00543213,2760.3,2760.2,0.72437]
[1749751086023,0.00543213,2760.3,2760.2,3.59451975]
[1749751086716,0.6494,2760.6,2760.5,0.7243]
[1749751086918,0.5917,2760.9,2760.8,0.72422]
[1749751088122,0.6494,2761.0,2760.9,0.72419]
[1749751089413,0.6494,2761.0,2760.8,2.86493772]
[1749751089617,0.72424,2760.7,2760.6,0.00543213]
[1749751089820,0.72424,2760.7,2760.6,0.72970213]
[1749751090014,0.72424,2760.7,2760.6,0.00543213]
[1749751090520,2.00994,2760.7,2760.6,0.72970213]
[1749751090718,1.2857,2760.7,2760.6,0.72970213]
[1749751090919,2.00994,2760.7,2760.6,0.72970213]
[1749751091224,2.00994,2760.7,2760.6,0.00543213]
[1749751091820,2.00994,2760.7,2760.6,0.72970213]
[1749751092320,2.00994,2760.7,2760.6,0.00543213]
[1749751098425,2.00994,2760.7,2760.6,0.72970213]
[1749751098623,2.00994,2760.7,2760.6,0.00543213]
[1749751099830,2.00994,2760.7,2760.6,0.72970213]
[1749751100222,1.2857,2760.7,2760.6,0.72970213]
[1749751100533,2.00994,2760.7,2760.6,0.72970213]
[1749751103124,1.2857,2760.7,2760.6,0.72970213]
[1749751103422,3.2078,2760.9,2760.8,0.72422]
[1749751103730,0.6494,2761.0,2760.9,0.72419]
[1749751104330,1.37356,2761.0,2760.9,0.72419]
[1749751104529,3.29026,2761.0,2760.9,0.72419]
[1749751104728,2.5661,2761.0,2760.9,0.72419]
[1749751104929,3.29026,2761.0,2760.9,0.72419]
[1749751105127,2.5661,2761.0,2760.9,0.72419]